fUST/lending_fUST_20250924
["ID","MTS","AMOUNT","RATE_DAILY","PERIOD"]
[387346753,1758699042511,-471.38313406,0.00019612,2]
[387346755,1758699042520,-480.0,0.00019612,2]
[387346757,1758699042529,-486.52723223,0.00019612,2]
[387346760,1758699042538,-480.0,0.00019612,2]
[387346761,1758699042547,-480.0,0.00019612,2]
[387346763,1758699042556,-480.0,0.00019612,2]
[387346766,1758699042567,-480.0,0.00019612,2]
[387346768,1758699042576,-480.0,0.00019612,2]
[387346770,1758699042585,-480.0,0.00019612,2]
[387346771,1758699042594,-480.0,0.00019612,2]
[387346774,1758699042604,-480.0,0.00019612,2]
[387346776,1758699042613,-480.0,0.00019612,2]
[387346778,1758699042622,-480.0,0.00019612,2]
[387346780,1758699042631,-491.11787085,0.00019612,2]
[387346782,1758699042641,-480.0,0.00019612,2]
[387346783,1758699042650,-480.0,0.00019612,2]
[387346785,1758699042659,-1657.99,0.00019612,2]
[387346788,1758699042669,-480.0,0.00019612,2]
[387346790,1758699042678,-480.0,0.00019612,2]
[387346792,1758699042687,-154.76423381,0.00019612,2]
[387346793,1758699042696,-480.0,0.00019612,2]
[387346796,1758699042705,-480.0,0.00019612,2]
[387346798,1758699042715,-480.0,0.00019612,2]
[387346800,1758699042723,-480.0,0.00019612,2]
[387346802,1758699042733,-151.0,0.00019612,2]
[387346804,1758699042742,-480.0,0.00019612,2]
[387346806,1758699042751,-151.0,0.00019612,2]
[387346808,1758699042760,-480.0,0.00019612,2]
[387346810,1758699042769,-483.57730556,0.00019612,2]
[387346812,1758699042779,-484.13865753,0.00019612,2]
[387346814,1758699042788,-480.0,0.00019613,2]
[387346816,1758699042797,-480.0,0.00019613,2]
[387346818,1758699042807,-773.25,0.00019613,2]
[387346820,1758699042817,-600.13,0.00019613,2]
[387346829,1758699042827,-480.0,0.00019613,2]
[387346831,1758699042903,-480.0,0.00019613,2]
[387346833,1758699042912,-502.61635189,0.00019673,2]
[387346835,1758699042921,-271.14209458,0.00019673,2]
[387346837,1758699042931,-500.81366583,0.00019673,2]
[387346839,1758699042940,-500.0,0.00019673,2]
[387346841,1758699042949,-500.0,0.00019673,2]
[387346843,1758699042959,-214.38354973,0.00019673,2]
[387346845,1758699042968,-565.83279145,0.00019673,2]
[387346847,1758699042978,-500.0,0.00019673,2]
[387346849,1758699042987,-500.0,0.00019673,2]
[387346851,1758699042996,-500.0,0.00019673,2]
[387346853,1758699043005,-158.5997713,0.00019673,2]
[387346855,1758699043014,-501.24716361,0.00019673,2]
[387346857,1758699043023,-508.33715765,0.00019786,2]
[387346859,1758699043033,-480.0,0.00019875,2]
[387346860,1758699043042,-480.0,0.00019878,2]
[387346862,1758699043052,-480.0,0.0001988,2]
[387346863,1758699043061,-480.0,0.0001988,2]
[387346866,1758699043071,-480.0,0.0001988,2]
[387346869,1758699043080,-509.85,0.0001988,2]
[387346871,1758699043090,-480.0,0.0001988,2]
[387346872,1758699043099,-480.0,0.00019881,2]
[387346873,1758699043108,-462.21015604,0.00019881,2]
[387346875,1758699043117,-490.42354924,0.00019881,2]
[387346877,1758699043126,-2495.12,0.00019881,2]
[387346879,1758699043136,-480.0,0.00019881,2]
[387346881,1758699043145,-910.22,0.00019881,2]
[387346883,1758699043155,-990.16,0.00019881,2]
[387346885,1758699043163,-480.0,0.00019881,2]
[387346887,1758699043173,-480.0,0.00019881,2]
[387346889,1758699043182,-480.0,0.00019881,2]
[387346890,1758699043191,-480.0,0.00019881,2]
[387346891,1758699043200,-480.0,0.00019881,2]
[387346892,1758699043210,-678.23,0.00019881,2]
[387346894,1758699043219,-480.0,0.00019881,2]
[387346896,1758699043228,-494.62463786,0.00019881,2]
[387346898,1758699043242,-1595.41,0.00019881,2]
[387346900,1758699043251,-480.0,0.00019881,2]
[387346902,1758699043260,-480.0,0.00019881,2]
[387346904,1758699043269,-496.84,0.00019881,2]
[387346906,1758699043278,-532.12,0.00019881,2]
[387346908,1758699043288,-480.0,0.00019882,2]
[387346910,1758699043298,-480.0,0.00019882,2]
[387346912,1758699043310,-480.0,0.00019882,2]
[387346914,1758699043320,-480.0,0.00019882,2]
[387346916,1758699043329,-480.0,0.00019882,2]
[387346918,1758699043339,-480.0,0.00019882,2]
[387346920,1758699043348,-480.0,0.00019882,2]
[387346922,1758699043358,-480.0,0.00019882,2]
[387346924,1758699043367,-480.0,0.00019882,2]
[387346926,1758699043376,-480.0,0.00019882,2]
[387346928,1758699043386,-480.0,0.00019882,2]
[387346930,1758699043395,-480.0,0.00019882,2]
[387346932,1758699043405,-480.0,0.00019882,2]
[387346934,1758699043414,-480.0,0.00019882,2]
[387346937,1758699043424,-480.0,0.00019882,2]
[387346939,1758699043433,-487.79798462,0.00019882,2]
[387346941,1758699043443,-480.0,0.00019882,2]
[387346943,1758699043452,-480.0,0.00019883,2]
[387346945,1758699043461,-480.0,0.00019883,2]
[387346947,1758699043470,-480.0,0.00019883,2]
[387346949,1758699043480,-480.0,0.00019883,2]
[387346951,1758699043488,-480.0,0.00019883,2]
[387346953,1758699043498,-480.0,0.00019883,2]
[387346955,1758699043507,-480.0,0.00019883,2]
[387346957,1758699043517,-480.0,0.00019883,2]
[387346959,1758699043527,-480.0,0.00019883,2]
[387346961,1758699043536,-480.0,0.00019883,2]
[387346963,1758699043545,-655.75,0.00019883,2]
[387346965,1758699043554,-480.0,0.00019883,2]
[387346967,1758699043564,-480.0,0.00019883,2]
[387346969,1758699043573,-480.0,0.00019883,2]
[387346971,1758699043582,-480.0,0.00019883,2]
[387346973,1758699043592,-480.0,0.00019883,2]
[387346975,1758699043601,-1020.51,0.00019883,2]
[387346977,1758699043610,-480.0,0.00019883,2]
[387346979,1758699043619,-480.0,0.00019883,2]
[387346981,1758699043629,-1211.39,0.00019883,2]
[387346983,1758699043639,-480.0,0.00019883,2]
[387346985,1758699043648,-480.0,0.00019883,2]
[387346987,1758699043657,-480.0,0.00019883,2]
[387346989,1758699043666,-402.21779819,0.00019884,2]
[387346991,1758699043675,-480.0,0.00019884,2]
[387346993,1758699043684,-480.0,0.00019884,2]
[387346995,1758699043693,-480.0,0.00019884,2]
[387346997,1758699043702,-480.0,0.00019884,2]
[387346999,1758699043712,-480.0,0.00019884,2]
[387347001,1758699043721,-480.0,0.00019884,2]
[387347003,1758699043730,-480.0,0.00019884,2]
[387347005,1758699043739,-296.79685513,0.00019884,2]
[387347007,1758699043748,-480.0,0.00019884,2]
[387347009,1758699043757,-486.09676151,0.00019884,2]
[387347011,1758699043766,-480.0,0.00019884,2]
[387347013,1758699043776,-480.0,0.00019884,2]
[387347015,1758699043785,-480.0,0.00019884,2]
[387347017,1758699043795,-480.0,0.00019884,2]
[387347019,1758699043804,-480.0,0.00019884,2]
[387347021,1758699043816,-480.0,0.00019884,2]
[387347023,1758699043826,-480.0,0.00019884,2]
[387347025,1758699043835,-1438.07,0.00019884,2]
[387347027,1758699043844,-480.0,0.00019884,2]
[387347029,1758699043853,-747.4,0.00019884,2]
[387347031,1758699043863,-480.0,0.00019884,2]
[387347033,1758699043872,-480.0,0.00019884,2]
[387347035,1758699043882,-480.0,0.00019884,2]
[387347037,1758699043891,-480.0,0.00019884,2]
[387347039,1758699043900,-722.1,0.00019884,2]
[387347041,1758699043910,-480.0,0.00019884,2]
[387347043,1758699043919,-480.0,0.00019884,2]
[387347045,1758699043929,-1948.25,0.00019884,2]
[387347048,1758699043939,-480.0,0.00019884,2]
[387347049,1758699043948,-480.0,0.00019884,2]
[387347052,1758699043958,-480.0,0.00019884,2]
[387347054,1758699043967,-480.0,0.00019884,2]
[387347056,1758699043976,-611.79,0.00019884,2]
[387347058,1758699043985,-151.0,0.00019884,2]
[387347060,1758699043995,-151.0,0.00019884,2]
[387347062,1758699044004,-480.0,0.00019884,2]
[387347064,1758699044013,-480.0,0.00019884,2]
[387347066,1758699044022,-480.0,0.00019884,2]
[387347068,1758699044031,-480.0,0.00019884,2]
[387347070,1758699044040,-480.0,0.00019884,2]
[387347072,1758699044049,-480.0,0.00019885,2]
[387347074,1758699044058,-480.0,0.00019885,2]
[387347076,1758699044070,-480.0,0.00019885,2]
[387347078,1758699044080,-480.0,0.00019885,2]
[387347080,1758699044089,-480.0,0.00019885,2]
[387347081,1758699044098,-480.0,0.00019885,2]
[387347084,1758699044108,-480.0,0.00019885,2]
[387347086,1758699044117,-480.0,0.00019885,2]
[387347088,1758699044126,-480.0,0.00019885,2]
[387347090,1758699044135,-480.0,0.00019885,2]
[387347092,1758699044144,-480.0,0.00019885,2]
[387347094,1758699044153,-480.0,0.00019885,2]
[387347096,1758699044162,-518.5340896,0.00019885,2]
[387347098,1758699044171,-480.0,0.00019885,2]
[387347100,1758699044180,-480.0,0.00019885,2]
[387347102,1758699044189,-480.0,0.00019885,2]
[387347104,1758699044198,-480.0,0.00019885,2]
[387347106,1758699044207,-480.0,0.00019885,2]
[387347108,1758699044216,-480.0,0.00019885,2]
[387347110,1758699044225,-799.45,0.00019885,2]
[387347112,1758699044236,-480.0,0.00019885,2]
[387347114,1758699044245,-480.0,0.00019885,2]
[387347116,1758699044254,-480.0,0.00019885,2]
[387347118,1758699044263,-480.0,0.00019885,2]
[387347120,1758699044272,-480.0,0.00019885,2]
[387347122,1758699044282,-492.05,0.00019885,2]
[387347124,1758699044291,-480.0,0.00019885,2]
[387347126,1758699044300,-456.62664937,0.00019885,2]
[387347128,1758699044310,-480.0,0.00019885,2]
[387347130,1758699044321,-480.0,0.00019885,2]
[387347132,1758699044331,-3248.08,0.00019885,2]
[387347134,1758699044341,-517.9255138,0.00019885,2]
[387347136,1758699044350,-622.31,0.00019885,2]
[387347138,1758699044359,-480.0,0.00019886,2]
[387347140,1758699044369,-480.0,0.00019886,2]
[387347142,1758699044378,-224.12386359,0.00019886,2]
[387347151,1758699044450,-480.0,0.00019886,2]
[387347153,1758699044461,-480.0,0.00019886,2]
[387347155,1758699044470,-486.17529755,0.00019886,2]
[387347157,1758699044479,-486.46651748,0.00019886,2]
[387347159,1758699044488,-480.0,0.00019886,2]
[387347161,1758699044497,-177.30214189,0.00019886,2]
[387347163,1758699044507,-268.85838512,0.00019886,2]
[387347165,1758699044517,-480.0,0.00019886,2]
[387347167,1758699044526,-480.0,0.00019886,2]
[387347169,1758699044535,-480.0,0.00019886,2]
[387347171,1758699044545,-480.0,0.00019886,2]
[387347173,1758699044554,-488.72230745,0.00019886,2]
[387347175,1758699044567,-239.79753875,0.00019886,2]
[387347177,1758699044576,-491.96788524,0.00019886,2]
[387347179,1758699044585,-485.63737398,0.00019886,2]
[387347181,1758699044595,-483.77828543,0.00019886,2]
[387347183,1758699044604,-480.0,0.00019886,2]
[387347186,1758699044614,-497.03896248,0.00019886,2]
[387347187,1758699044623,-233.09227744,0.00019886,2]
[387347189,1758699044632,-1657.99,0.00019886,2]
[387347191,1758699044641,-480.0,0.00019886,2]
[387347193,1758699044650,-480.0,0.00019886,2]
[387347195,1758699044659,-480.0,0.00019886,2]
[387347197,1758699044669,-480.0,0.00019886,2]
[387347199,1758699044678,-480.0,0.00019886,2]
[387347201,1758699044687,-490.35936356,0.00019886,2]
[387347203,1758699044697,-480.0,0.00019886,2]
[387347205,1758699044706,-480.0,0.00019886,2]
[387347207,1758699044715,-480.0,0.00019887,2]
[387347209,1758699044724,-773.25,0.00019887,2]
[387347211,1758699044734,-600.13,0.00019887,2]
[387347213,1758699044743,-480.0,0.00019887,2]
[387347215,1758699044752,-2221.71005492,0.000199,2]
[387347217,1758699044761,-500.0,0.00019927,2]
[387347219,1758699044770,-500.0,0.00019927,2]
[387347221,1758699044779,-500.0,0.00019932,2]
[387347223,1758699044788,-500.0,0.00019932,2]
[387347224,1758699044797,-500.0,0.00019932,2]
[387347225,1758699044806,-420.0,0.00020003,2]
[387347226,1758699044819,-445.46521117,0.00020003,2]
[387347227,1758699044829,-500.0,0.0002001,2]
[387347228,1758699044838,-506.42210844,0.0002001,2]
[387347229,1758699044848,-500.0,0.0002001,2]
[387347230,1758699044858,-500.0,0.0002001,2]
[387347231,1758699044867,-500.0,0.0002001,2]
[387347232,1758699044876,-500.0,0.0002001,2]
[387347233,1758699044885,-500.73192138,0.0002001,2]
[387347234,1758699044894,-500.0,0.0002001,2]
[387347235,1758699044903,-500.0,0.0002001,2]
[387347236,1758699044912,-508.33715765,0.00020061,2]
[387347238,1758699044922,-187.18132043,0.00020118,2]
[387347239,1758699044932,-480.0,0.00020152,2]
[387347240,1758699044941,-480.0,0.00020154,2]
[387347242,1758699044950,-464.25802383,0.00020154,2]
[387347244,1758699044959,-480.0,0.00020154,2]
[387347246,1758699044969,-509.85,0.00020154,2]
[387347248,1758699044978,-480.0,0.00020154,2]
[387347250,1758699044987,-322.69530241,0.00020155,2]
[387347252,1758699044996,-2495.12,0.00020155,2]
[387347254,1758699045006,-480.0,0.00020155,2]
[387347256,1758699045015,-910.22,0.00020155,2]
[387347258,1758699045024,-990.16,0.00020155,2]
[387347260,1758699045033,-480.0,0.00020155,2]
[387347262,1758699045043,-480.0,0.00020155,2]
[387347264,1758699045052,-480.0,0.00020155,2]
[387347266,1758699045063,-480.0,0.00020155,2]
[387347267,1758699045071,-480.0,0.00020155,2]
[387347268,1758699045081,-678.23,0.00020155,2]
[387347269,1758699045090,-493.70078888,0.00020155,2]
[387347270,1758699045099,-1595.41,0.00020155,2]
[387347271,1758699045109,-480.0,0.00020155,2]
[387347272,1758699045118,-480.0,0.00020155,2]
[387347273,1758699045127,-496.84,0.00020155,2]
[387347274,1758699045137,-532.12,0.00020155,2]
[387347275,1758699045146,-480.0,0.00020156,2]
[387347276,1758699045155,-480.0,0.00020156,2]
[387347277,1758699045164,-590.63,0.00020156,2]
[387347278,1758699045173,-480.0,0.00020156,2]
[387347279,1758699045183,-480.0,0.00020156,2]
[387347280,1758699045192,-169.8211164,0.00020156,2]
[387347281,1758699045201,-480.0,0.00020156,2]
[387347282,1758699045211,-506.89163456,0.00020156,2]
[387347283,1758699045220,-480.0,0.00020156,2]
[387347284,1758699045230,-480.0,0.00020156,2]
[387347285,1758699045243,-483.49525876,0.00020157,2]
[387347286,1758699045253,-281.87867803,0.00020157,2]
[387347287,1758699045262,-480.0,0.00020157,2]
[387347288,1758699045272,-480.0,0.00020157,2]
[387347289,1758699045282,-480.0,0.00020157,2]
[387347290,1758699045291,-492.03589715,0.00020157,2]
[387347291,1758699045301,-480.0,0.00020157,2]
[387347292,1758699045312,-480.0,0.00020157,2]
[387347293,1758699045322,-480.0,0.00020157,2]
[387347294,1758699045332,-480.0,0.00020157,2]
[387347295,1758699045341,-655.75,0.00020157,2]
[387347296,1758699045350,-480.0,0.00020157,2]
[387347297,1758699045359,-480.0,0.00020157,2]
[387347298,1758699045368,-480.0,0.00020157,2]
[387347299,1758699045378,-480.0,0.00020157,2]
[387347300,1758699045387,-480.0,0.00020157,2]
[387347301,1758699045396,-1020.51,0.00020157,2]
[387347302,1758699045406,-480.0,0.00020157,2]
[387347303,1758699045415,-480.0,0.00020157,2]
[387347304,1758699045424,-1211.39,0.00020157,2]
[387347305,1758699045433,-480.0,0.00020157,2]
[387347306,1758699045442,-480.0,0.00020157,2]
[387347307,1758699045451,-480.0,0.00020157,2]
[387347308,1758699045460,-480.0,0.00020158,2]
[387347309,1758699045469,-480.0,0.00020158,2]
[387347310,1758699045478,-480.0,0.00020158,2]
[387347311,1758699045488,-480.0,0.00020158,2]
[387347312,1758699045497,-480.0,0.00020158,2]
[387347313,1758699045507,-189.64801575,0.00020158,2]
[387347314,1758699045516,-480.0,0.00020158,2]
[387347315,1758699045525,-1438.07,0.00020158,2]
[387347316,1758699045534,-480.0,0.00020158,2]
[387347317,1758699045543,-747.4,0.00020158,2]
[387347318,1758699045553,-480.0,0.00020158,2]
[387347319,1758699045562,-480.0,0.00020158,2]
[387347320,1758699045571,-480.0,0.00020158,2]
[387347321,1758699045580,-480.0,0.00020158,2]
[387347322,1758699045590,-722.1,0.00020158,2]
[387347323,1758699045599,-480.0,0.00020158,2]
[387347324,1758699045608,-480.0,0.00020158,2]
[387347325,1758699045617,-1948.25,0.00020158,2]
[387347326,1758699045627,-480.0,0.00020158,2]
[387347327,1758699045636,-515.89988842,0.00020158,2]
[387347328,1758699045645,-611.79,0.00020158,2]
[387347329,1758699045654,-480.0,0.00020158,2]
[387347330,1758699045663,-480.0,0.00020158,2]
[387347331,1758699045672,-480.0,0.00020158,2]
[387347332,1758699045681,-480.0,0.00020159,2]
[387347333,1758699045690,-480.0,0.00020159,2]
[387347334,1758699045699,-480.0,0.00020159,2]
[387347335,1758699045708,-480.0,0.00020159,2]
[387347336,1758699045718,-501.90252191,0.00020159,2]
[387347337,1758699045727,-480.0,0.00020159,2]
[387347338,1758699045737,-480.0,0.00020159,2]
[387347339,1758699045746,-480.0,0.00020159,2]
[387347340,1758699045755,-480.0,0.00020159,2]
[387347341,1758699045764,-480.0,0.00020159,2]
[387347342,1758699045775,-480.0,0.00020159,2]
[387347343,1758699045785,-480.0,0.00020159,2]
[387347345,1758699045794,-480.0,0.00020159,2]
[387347347,1758699045803,-480.0,0.00020159,2]
[387347349,1758699045813,-480.0,0.00020159,2]
[387347352,1758699045885,-480.0,0.00020159,2]
[387347353,1758699045895,-480.0,0.00020159,2]
[387347354,1758699045904,-799.45,0.00020159,2]
[387347355,1758699045913,-480.0,0.00020159,2]
[387347356,1758699045923,-480.0,0.00020159,2]
[387347357,1758699045932,-480.0,0.00020159,2]
[387347358,1758699045942,-480.0,0.00020159,2]
[387347359,1758699045951,-480.0,0.00020159,2]
[387347360,1758699045961,-492.05,0.00020159,2]
[387347361,1758699045970,-480.0,0.00020159,2]
[387347362,1758699045979,-480.0,0.00020159,2]
[387347363,1758699045989,-480.0,0.00020159,2]
[387347364,1758699045999,-3248.08,0.00020159,2]
[387347365,1758699046008,-622.31,0.00020159,2]
[387347366,1758699046018,-480.0,0.0002016,2]
[387347367,1758699046027,-480.0,0.0002016,2]
[387347368,1758699046037,-480.0,0.0002016,2]
[387347369,1758699046048,-480.0,0.0002016,2]
[387347370,1758699046057,-480.0,0.0002016,2]
[387347371,1758699046068,-1657.99,0.0002016,2]
[387347373,1758699046077,-480.0,0.0002016,2]
[387347374,1758699046087,-480.0,0.0002016,2]
[387347376,1758699046096,-480.0,0.0002016,2]
[387347377,1758699046106,-480.0,0.0002016,2]
[387347379,1758699046115,-773.25,0.00020161,2]
[387347380,1758699046125,-600.13,0.00020161,2]
[387347381,1758699046134,-480.0,0.00020161,2]
[387347382,1758699046143,-1000.0,0.00020221,2]
[387347383,1758699046152,-1000.0,0.00020221,2]
[387347384,1758699046162,-1000.0,0.00020221,2]
[387347385,1758699046171,-1000.0,0.00020221,2]
[387347386,1758699046180,-1000.0,0.00020221,2]
[387347387,1758699046189,-160.0,0.00020321,2]
[387347388,1758699046199,-508.33715765,0.00020335,2]
[387347389,1758699046208,-2399.28,0.00020349,2]
[387347390,1758699046217,-480.0,0.00020426,2]
[387347391,1758699046227,-480.0,0.00020428,2]
[387347392,1758699046240,-509.85,0.00020428,2]
[387347393,1758699046249,-334.27914084,0.00020428,2]
[387347394,1758699046259,-2495.12,0.00020429,2]
[387347395,1758699046268,-480.0,0.00020429,2]
[387347396,1758699046277,-910.22,0.00020429,2]
[387347397,1758699046287,-990.16,0.00020429,2]
[387347398,1758699046296,-480.0,0.00020429,2]
[387347399,1758699046305,-480.0,0.00020429,2]
[387347400,1758699046315,-480.0,0.00020429,2]
[387347401,1758699046326,-480.0,0.00020429,2]
[387347402,1758699046335,-678.23,0.00020429,2]
[387347403,1758699046345,-1595.41,0.00020429,2]
[387347404,1758699046354,-480.0,0.00020429,2]
[387347405,1758699046363,-480.0,0.00020429,2]
[387347406,1758699046373,-496.84,0.00020429,2]
[387347407,1758699046382,-532.12,0.00020429,2]
[387347408,1758699046391,-480.0,0.0002043,2]
[387347409,1758699046400,-480.0,0.0002043,2]
[387347410,1758699046410,-480.0,0.0002043,2]
[387347411,1758699046420,-480.0,0.0002043,2]
[387347412,1758699046429,-480.0,0.0002043,2]
[387347413,1758699046438,-480.0,0.0002043,2]
[387347414,1758699046447,-480.0,0.0002043,2]
[387347415,1758699046457,-480.0,0.00020431,2]
[387347416,1758699046466,-480.0,0.00020431,2]
[387347417,1758699046475,-480.0,0.00020431,2]
[387347418,1758699046485,-480.0,0.00020431,2]
[387347419,1758699046494,-480.0,0.00020431,2]
[387347420,1758699046503,-480.0,0.00020431,2]
[387347421,1758699046513,-655.75,0.00020431,2]
[387347422,1758699046522,-246.13399963,0.00020431,2]
[387347423,1758699046532,-480.0,0.00020431,2]
[387347424,1758699046541,-480.0,0.00020431,2]
[387347425,1758699046551,-480.0,0.00020431,2]
[387347426,1758699046560,-480.0,0.00020431,2]
[387347427,1758699046571,-1020.51,0.00020431,2]
[387347428,1758699046579,-480.0,0.00020431,2]
[387347429,1758699046589,-480.0,0.00020431,2]
[387347430,1758699046599,-1211.39,0.00020431,2]
[387347431,1758699046608,-480.0,0.00020431,2]
[387347432,1758699046618,-490.69273148,0.00020432,2]
[387347433,1758699046627,-480.0,0.00020432,2]
[387347434,1758699046637,-480.0,0.00020432,2]
[387347435,1758699046647,-480.0,0.00020432,2]
[387347436,1758699046656,-480.0,0.00020432,2]
[387347437,1758699046665,-1438.07,0.00020432,2]
[387347438,1758699046675,-480.0,0.00020432,2]
[387347439,1758699046685,-747.4,0.00020432,2]
[387347440,1758699046695,-480.0,0.00020432,2]
[387347441,1758699046704,-480.0,0.00020432,2]
[387347442,1758699046713,-480.0,0.00020432,2]
[387347443,1758699046722,-480.0,0.00020432,2]
[387347444,1758699046732,-722.1,0.00020432,2]
[387347445,1758699046741,-480.0,0.00020432,2]
[387347446,1758699046750,-480.0,0.00020432,2]
[387347447,1758699046759,-1948.25,0.00020432,2]
[387347448,1758699046768,-480.0,0.00020432,2]
[387347449,1758699046777,-611.79,0.00020432,2]
[387347450,1758699046786,-480.0,0.00020432,2]
[387347451,1758699046795,-480.0,0.00020432,2]
[387347452,1758699046804,-480.0,0.00020433,2]
[387347453,1758699046813,-193.47413314,0.00020433,2]
[387347454,1758699046822,-480.0,0.00020433,2]
[387347455,1758699046831,-480.0,0.00020433,2]
[387347456,1758699046840,-483.97583523,0.00020433,2]
[387347457,1758699046849,-480.0,0.00020433,2]
[387347458,1758699046859,-500.54643758,0.00020433,2]
[387347459,1758699046868,-480.0,0.00020433,2]
[387347460,1758699046877,-480.0,0.00020433,2]
[387347461,1758699046886,-483.79384578,0.00020433,2]
[387347462,1758699046895,-480.0,0.00020433,2]
[387347463,1758699046905,-480.0,0.00020433,2]
[387347464,1758699046914,-480.0,0.00020433,2]
[387347465,1758699046923,-480.0,0.00020433,2]
[387347466,1758699046931,-799.45,0.00020433,2]
[387347467,1758699046941,-480.0,0.00020433,2]
[387347468,1758699046950,-480.0,0.00020433,2]
[387347469,1758699046958,-480.0,0.00020433,2]
[387347470,1758699046967,-480.0,0.00020433,2]
[387347471,1758699046977,-480.0,0.00020433,2]
[387347472,1758699046986,-492.05,0.00020433,2]
[387347473,1758699046995,-480.0,0.00020433,2]
[387347474,1758699047004,-480.0,0.00020433,2]
[387347475,1758699047013,-480.0,0.00020433,2]
[387347476,1758699047022,-3248.08,0.00020433,2]
[387347477,1758699047031,-622.31,0.00020433,2]
[387347478,1758699047040,-480.0,0.00020434,2]
[387347479,1758699047048,-480.0,0.00020434,2]
[387347480,1758699047057,-480.0,0.00020434,2]
[387347481,1758699047067,-480.0,0.00020434,2]
[387347482,1758699047076,-480.0,0.00020434,2]
[387347483,1758699047085,-1657.99,0.00020434,2]
[387347484,1758699047095,-480.0,0.00020434,2]
[387347485,1758699047104,-480.0,0.00020434,2]
[387347486,1758699047113,-773.25,0.00020435,2]
[387347487,1758699047122,-600.13,0.00020435,2]
[387347488,1758699047131,-344.90027773,0.00020435,2]
[387347489,1758699047199,-501.24338984,0.00020473,2]
[387347490,1758699047208,-1000.0,0.00020475,2]
[387347491,1758699047218,-404.96847565,0.00020475,2]
[387347492,1758699047227,-1000.0,0.0002048,2]
[387347494,1758699047240,-500.69895563,0.0002048,2]
[387347496,1758699047249,-350.0,0.0002053,2]
[387347498,1758699047259,-151.0,0.0002053,2]
[387347500,1758699047268,-151.0,0.0002053,2]
[387347502,1758699047279,-350.0,0.0002053,2]
[387347504,1758699047289,-350.0,0.0002053,2]
[387347506,1758699047299,-151.0,0.0002053,2]
[387347508,1758699047307,-350.0,0.0002053,2]
[387347510,1758699047322,-152.84390681,0.0002053,2]
[387347512,1758699047332,-350.0,0.0002053,2]
[387347514,1758699047341,-350.0,0.0002053,2]
[387347516,1758699047350,-350.0,0.0002053,2]
[387347517,1758699047360,-354.62480434,0.0002053,2]
[387347519,1758699047369,-1000.0,0.0002053,2]
[387347521,1758699047378,-1000.0,0.0002053,2]
[387347523,1758699047387,-1143.80937738,0.0002053,2]
[387347525,1758699047397,-151.0,0.00020548,7]
[387347527,1758699047407,-151.0,0.00020548,7]
[387347530,1758699047420,-151.0,0.00020548,7]
[387347531,1758699047429,-151.0,0.00020548,7]
[387347533,1758699047438,-151.0,0.00020548,7]
[387347535,1758699047447,-151.0,0.00020548,7]
[387347537,1758699047457,-151.0,0.00020548,7]